bitfinex/quotes_SOLUSD_20241001
["timestamp","ask_amount","ask_price","bid_price","bid_amount"]
[1727803495153,6.8793,145.37,145.31,6.8813]
[1727803495360,35.2886,145.41,145.29,17.2067]
[1727803495536,35.2886,145.41,145.3,6.8822]
[1727803495537,12.94897785,145.4,145.3,6.8822]
[1727803495850,12.94897785,145.4,145.29,17.2067]
[1727803495851,6.8801,145.35,145.29,17.2067]
[1727803496058,6.8793,145.37,145.31,6.8816]
[1727803496249,6.8808,145.34,145.29,24.0893]
[1727803496464,23.776884,145.33,145.29,24.0893]
[1727803496939,30.657784,145.33,145.29,24.0893]
[1727803497141,20.0,145.38,145.31,6.8817]
[1727803497340,26.8785,145.38,145.34,6.8804]
[1727803497545,6.8795,145.36,145.31,17.2039]
[1727803497841,18.0949,145.41,145.33,6.8807]
[1727803497842,20.0,145.4,145.33,6.8807]
[1727803498051,12.96770424,145.39,145.28,54.76103541]
[1727803498357,18.0949,145.41,145.36,17.1981]
[1727803498663,6.8796,145.36,145.31,6.8814]
[1727803498847,6.8796,145.36,145.31,24.0855]
[1727803499051,17.1971,145.38,145.27,17.2088]
[1727803499261,12.99532319,145.37,145.26,34.4208]
[1727803499554,18.0949,145.41,145.26,89.18183541]
[1727803499734,18.0949,145.41,145.31,17.2039]
[1727803499944,7.28243734,145.4,145.29,54.76103541]
[1727803500146,24.9721,145.41,145.29,54.76103541]
[1727803500335,6.8784,145.39,145.35,17.1992]
[1727803500538,7.28792889,145.4,145.35,24.0786]
[1727803500539,7.28803822,145.38,145.35,24.0786]
[1727803500841,7.7853,145.42,145.36,1.37565949]
[1727803501147,7.29270186,145.41,145.39,6.8779]
[1727803501351,7.7853,145.42,145.39,6.8779]
[1727803501534,13.02527265,145.41,145.39,8.25328274]
[1727803501861,7.7853,145.42,145.4,6.8775]
[1727803502067,26.4909,145.49,145.4,17.193]
[1727803502371,26.4909,145.49,145.35,54.76103541]
[1727803502372,22.21399629,145.48,145.42,17.1905]
[1727803502537,26.4909,145.49,145.42,17.1905]
[1727803502741,7.2965,145.49,145.44,6.8754]
[1727803502942,7.2965,145.49,145.45,6.8751]
[1727803503138,7.2965,145.49,145.42,17.1905]
[1727803503364,6.8742,145.47,145.42,24.0669]
[1727803503571,6.8742,145.47,145.42,17.1905]
[1727803503777,7.2965,145.49,145.45,6.8752]
[1727803503778,7.30365283,145.46,145.45,6.8752]
[1727803503945,7.2965,145.49,145.45,6.8752]
[1727803504149,1.5791225,145.53,145.47,6.8742]
[1727803504453,13.04090711,145.52,145.42,34.3817]
[1727803504658,1.5791225,145.53,145.48,17.1838]
[1727803504659,7.3044153,145.51,145.48,17.1838]
[1727803504961,1.5791225,145.53,145.49,1.3744883]
[1727803505153,1.5791225,145.53,145.51,17.1806]
[1727803505352,1.5791225,145.53,145.52,6.8719]
[1727803505848,1.5791225,145.53,145.51,24.0529]
[1727803506153,1.5791225,145.53,145.51,17.1806]
[1727803506466,1.5791225,145.53,145.52,6.8719]
[1727803507848,6.8609,145.76,145.63,24.033]
[1727803508170,40.96946388,145.83,145.58,34.3437]
[1727803508171,32.94254169,145.78,145.61,2.0]
[1727803508359,24.4385,145.81,145.62,2.0]
[1727803508360,33.46229203,145.75,145.62,2.0]
[1727803508561,6.8621,145.73,145.64,8.8659]
[1727803508745,7.2928,145.81,145.66,6.865]
[1727803508746,22.21643997,145.72,145.66,6.865]
[1727803509063,7.2928,145.81,145.68,2.0]
[1727803509379,7.29607523,145.8,145.75,2.0]
[1727803509557,7.2928,145.81,145.73,17.1546]
[1727803509874,12.99644045,145.8,145.76,2.0]
[1727803510080,7.2928,145.81,145.74,6.8612]
[1727803510278,7.2928,145.81,145.58,36.04601201]
[1727803510279,7.27746752,145.8,145.71,2.0]
[1727803510473,7.2928,145.81,145.69,2.0]
[1727803510660,6.8616,145.74,145.67,2.0]
[1727803510864,6.8612,145.75,145.69,2.0]
[1727803511168,7.2928,145.81,145.67,2.0]
[1727803511169,17.1483,145.79,145.67,2.0]
[1727803511375,6.8613,145.75,145.7,2.0]
[1727803511581,7.91492501,145.81,145.67,2.0]
[1727803511888,23.776884,145.72,145.67,2.0]
[1727803512054,0.2810215,145.82,145.71,2.0]
[1727803512249,6.8587,145.8,145.71,8.8625]
[1727803512470,7.1391215,145.82,145.76,2.0]
[1727803512859,6.8584,145.81,145.76,2.0]
[1727803513079,0.2810215,145.82,145.72,2.0]
[1727803513277,0.2810215,145.82,145.75,6.8608]
[1727803513469,0.2810215,145.82,145.8,8.8585]
[1727803513778,0.2810215,145.82,145.78,2.0]
[1727803513961,0.2810215,145.82,145.8,2.0]
[1727803514478,0.2810215,145.82,145.81,1.37114482]
[1727803514660,0.2810215,145.82,145.8,26.0049]
[1727803514865,0.2810215,145.82,145.8,27.57260527]
[1727803515050,0.2810215,145.82,145.81,1.56759775]
[1727803516084,0.2810215,145.82,145.8,19.1464]
[1727803516376,0.2810215,145.82,145.77,2.0]
[1727803516377,7.1389215,145.82,145.77,2.0]
[1727803516555,0.2810215,145.82,145.8,2.0]
[1727803516757,0.2810215,145.82,145.81,2.0]
[1727803516976,0.2810215,145.82,145.79,2.0]
[1727803517195,0.2810215,145.82,145.77,2.0]
[1727803517486,0.2810215,145.82,145.76,2.0]
[1727803517776,0.2810215,145.82,145.78,2.0]
[1727803518479,0.2810215,145.82,145.74,2.0]
[1727803518666,6.8592,145.79,145.74,2.0]
[1727803518865,0.2810215,145.82,145.74,2.0]
[1727803519178,0.2810215,145.82,145.79,2.0]
[1727803519391,0.2810215,145.82,145.81,2.0]
[1727803519584,34.243,146.02,145.87,2.0]
[1727803519880,34.243,146.02,145.81,1.56759775]
[1727803519881,7.3692,145.98,145.85,2.0]
[1727803520182,7.3692,145.98,145.87,2.0]
[1727803520366,7.3692,145.98,145.85,25.9967]
[1727803520571,6.8536,145.91,145.85,19.1406]
[1727803520873,6.8524,145.94,145.87,2.0]
[1727803521193,7.3692,145.98,145.81,1.56759775]
[1727803521194,7.3692,145.98,145.89,2.0]
[1727803521481,6.8526,145.93,145.89,2.0]
[1727803521679,6.851,145.97,145.92,2.0]
[1727803521896,19.2181,146.0,145.92,2.0]
[1727803522061,7.8097,146.04,145.94,2.0]
[1727803522258,14.6573,146.04,145.94,3.36980062]
[1727803522574,6.848,146.03,145.94,2.0]
[1727803523283,7.8097,146.04,145.94,3.56620137]
[1727803523458,7.8097,146.04,145.94,2.0]
[1727803524090,6.8498,145.99,145.94,2.0]
[1727803524585,7.8097,146.04,145.94,2.0]
[1727803524789,6.8512,145.96,145.92,2.0]
[1727803524996,20.0,146.03,145.94,2.0]
[1727803525381,6.8493,146.0,145.94,2.0]
[1727803525584,6.8487,146.02,145.94,2.0]
[1727803525787,20.0,146.03,145.94,2.0]
[1727803526098,7.8097,146.04,145.94,2.0]
[1727803526599,7.8097,146.04,145.91,19.1329]
[1727803526600,6.8512,145.96,145.91,19.1329]
[1727803526897,7.8097,146.04,145.93,2.0]
[1727803527095,7.8097,146.04,145.93,8.8525]
[1727803527593,7.8097,146.04,145.91,2.0]
[1727803527799,17.1215,146.02,145.94,2.0]
[1727803527973,7.8097,146.04,145.94,3.56620137]
[1727803528275,6.8479,146.03,145.94,3.56620137]
[1727803528480,6.8493,146.0,145.94,3.56620137]
[1727803528680,1.4644577,146.05,145.94,2.0]
[1727803529291,6.8502,145.98,145.94,2.0]
[1727803530094,23.776884,145.96,145.94,2.0]
[1727803530306,6.8526,145.93,145.88,2.0]
[1727803530473,23.776884,145.93,145.92,2.0]
[1727803531181,18.5824577,146.05,145.94,8.8521]
[1727803531391,6.8489,146.01,145.94,8.8521]
[1727803531593,18.5824577,146.05,145.94,8.8521]
[1727803531594,6.8503,145.98,145.94,2.0]
[1727803531901,6.8512,145.96,145.92,2.0]
[1727803532092,51.4644577,146.05,145.9,2.0]
[1727803532093,6.8523,145.94,145.9,2.0]
[1727803532283,7.1684905,145.95,145.9,2.0]
[1727803532482,0.3167905,145.95,145.9,8.8539]
[1727803532694,0.3167905,145.95,145.92,2.0]
[1727803532982,0.3167905,145.95,145.94,8.8521]
[1727803534477,7.1687905,145.95,145.89,23.9892]
[1727803534689,6.8521,145.94,145.89,23.9892]
[1727803534897,0.3167905,145.95,145.92,2.0]
[1727803535097,0.3167905,145.95,145.92,6.853]
[1727803535285,0.3167905,145.95,145.92,2.0]
[1727803535487,0.3167905,145.95,145.92,6.853]
[1727803535693,0.3167905,145.95,145.89,17.1352]
[1727803535897,20.3167905,145.95,145.89,17.1352]
[1727803536097,0.3167905,145.95,145.9,6.8535]
[1727803536400,0.3167905,145.95,145.88,6.8549]
[1727803536604,20.0,145.92,145.87,6.8552]
[1727803536811,6.8546,145.89,145.85,19.1398]
[1727803537104,6.8544,145.89,145.85,17.1398]
[1727803537405,20.0,145.93,145.8,2.0]
[1727803537608,20.0,145.93,145.67,2.0]
[1727803537609,20.0,145.82,145.76,2.0]
[1727803537786,20.0,145.84,145.74,2.0]
[1727803538179,20.0,145.84,145.71,17.1564]
[1727803538180,6.8592,145.79,145.73,2.0]
[1727803538386,20.0,145.76,145.71,19.1564]
[1727803538585,20.0,145.76,145.67,8.82174926]
[1727803538806,20.0,145.71,145.67,8.82174926]
[1727803539109,20.0,145.71,145.63,17.1663]
[1727803539280,20.0,145.71,145.65,8.8657]
[1727803539602,6.8611,145.75,145.67,26.0257]
[1727803539795,20.0,145.78,145.67,17.1613]
[1727803540002,20.0,145.71,145.65,2.0]
[1727803540318,20.0,145.78,145.65,2.0]
[1727803540319,20.0,145.78,145.69,19.159]
[1727803540613,20.0,145.78,145.72,2.0]
[1727803540790,20.0,145.78,145.72,19.1553]
[1727803541207,20.0,145.78,145.73,6.8619]
[1727803541388,26.8598,145.78,145.72,19.1553]
[1727803541589,20.0,145.78,145.73,6.8619]
[1727803542020,50.0,145.88,145.74,2.0]
[1727803542021,19.815,145.87,145.74,2.0]
[1727803542223,19.815,145.87,145.75,17.152]
[1727803542518,6.8594,145.79,145.72,8.8622]
[1727803542689,17.1415,145.85,145.71,24.02]
[1727803543008,6.8617,145.74,145.68,2.0]
[1727803543214,37.1482,145.79,145.66,19.1624]
[1727803543591,37.1482,145.79,145.63,8.8667]
[1727803543592,6.8635,145.7,145.63,8.8667]
[1727803543921,20.0,145.65,145.59,2.0]
[1727803544104,20.0,145.65,145.59,8.8685]
[1727803544299,20.0,145.65,145.57,2.0]
[1727803544503,6.8678,145.61,145.55,8.8703]
[1727803544807,20.0,145.6,145.55,8.8703]
[1727803544986,20.0,145.6,145.55,2.0]
[1727803544987,26.8681,145.6,145.55,2.0]
[1727803545195,20.0,145.57,145.53,2.0]
[1727803545393,20.0,145.57,145.51,2.0]
[1727803545591,20.0,145.55,145.51,2.0]
[1727803545896,20.0,145.57,145.45,19.1868]
[1727803545897,6.8729,145.5,145.45,19.1868]
[1727803546099,6.8729,145.5,145.43,8.876]
[1727803546301,38.8072,145.57,145.43,2.0]
[1727803546513,20.0,145.48,145.43,2.0]
[1727803546708,50.0,145.58,145.44,2.0]
[1727803547024,6.8738,145.48,145.42,2.0]
[1727803547196,20.0,145.52,145.45,8.8748]
[1727803547398,20.0,145.5,145.45,8.8748]
[1727803547597,20.0,145.52,145.45,2.0]
[1727803547810,20.0,145.52,145.43,2.0]
[1727803547811,20.0,145.49,145.43,2.0]
[1727803548015,20.0,145.46,145.41,2.0]
[1727803548600,20.0,145.47,145.41,2.0]
[1727803548916,37.1814,145.51,145.4,17.1937]
[1727803549101,6.8751,145.46,145.4,24.0711]
[1727803549308,20.0,145.45,145.4,24.0711]
[1727803549519,20.0,145.45,145.4,17.1937]
[1727803549836,26.8752,145.45,145.39,2.0]
[1727803549997,57.9065,145.52,145.32,34.4063]
[1727803549998,20.0,145.5,145.41,2.0]
[1727803550318,18.8072,145.57,145.44,2.0]
[1727803550521,103.1565,145.57,145.4,19.1933]
[1727803550819,103.1565,145.57,145.37,34.3935]
[1727803550820,17.1777,145.54,145.45,2.0]
[1727803551022,17.1777,145.54,145.37,34.3935]
[1727803551023,6.8738,145.48,145.43,17.1898]
[1727803551198,17.1777,145.54,145.41,2.0]
[1727803551393,50.0,145.55,145.41,2.0]
[1727803551600,17.1823,145.5,145.41,2.0]
[1727803551803,6.8743,145.47,145.41,2.0]
[1727803552023,8.67562216,145.56,145.43,2.0]
[1727803552232,53.1565,145.57,145.45,19.1877]
[1727803552233,18.8072,145.57,145.45,19.1877]
[1727803552395,17.1772,145.55,145.45,2.0]
[1727803552716,6.8743,145.47,145.42,2.0]
[1727803553093,50.0,145.56,145.42,2.0]
[1727803553094,17.1802,145.52,145.42,2.0]
[1727803553296,20.0,145.46,145.44,2.0]
[1727803553493,20.0,145.46,145.33,54.76103541]
[1727803553494,6.8752,145.45,145.4,17.1936]
[1727803553715,20.0,145.48,145.43,2.0]
[1727803554422,34.3594,145.53,145.43,2.0]
[1727803554423,6.8744,145.47,145.43,2.0]
[1727803554599,20.0,145.46,145.43,2.0]
[1727803554920,20.0,145.46,145.4,6.8775]
[1727803555120,20.0,145.46,145.36,8.879]
[1727803555300,6.8777,145.4,145.36,2.0]
[1727803555500,20.0,145.37,145.34,2.0]
[1727803555703,20.0,145.37,145.32,2.0]
[1727803556131,20.0,145.4,145.31,24.0857]
[1727803556305,6.881,145.33,145.3,2.0]
[1727803556505,6.8814,145.32,145.28,2.0]
[1727803556811,6.8804,145.34,145.29,2.0]
[1727803557003,6.881,145.33,145.29,2.0]
[1727803557417,6.8813,145.32,145.29,2.0]
[1727803557620,20.0,145.38,145.31,2.0]
[1727803557824,20.0,145.38,145.29,2.0]
[1727803558025,17.1986,145.37,145.27,2.0]
[1727803558208,6.8818,145.32,145.27,2.0]
[1727803558408,17.1986,145.37,145.15,9.1455577]
[1727803558409,50.0,145.37,145.25,2.0]
[1727803558625,17.2009,145.35,145.23,2.0]
[1727803558926,6.8834,145.28,145.23,8.8855]
[1727803559111,20.0,145.34,145.23,2.0]
[1727803559424,20.0,145.34,145.15,9.1455577]
[1727803559425,6.8851,145.25,145.21,2.0]
[1727803559929,20.0,145.3,145.23,1.7752]
[1727803560136,20.0,145.3,145.25,1.7752]
[1727803560334,20.0,145.35,145.25,8.6598]
[1727803560543,6.8807,145.34,145.27,1.7752]
[1727803560713,17.1998,145.36,145.29,1.7752]
[1727803560911,7.6686,145.38,145.27,1.7752]
[1727803561137,6.8832,145.28,145.25,1.7752]
[1727803561430,6.8847,145.25,145.23,1.7752]
[1727803561640,50.0,145.35,145.21,1.7752]
[1727803561847,50.0,145.35,145.17,17.22]
[1727803561848,6.887,145.21,145.17,1.7752]
[1727803562135,20.0,145.23,145.17,1.7752]
[1727803562337,6.8889,145.16,145.15,1.4644577]
[1727803562550,17.2163,145.22,145.15,3.2396577]
[1727803562551,6.8884,145.18,145.15,3.2396577]
[1727803562720,6.8884,145.18,145.15,1.4644577]
[1727803563247,26.8889,145.16,145.15,1.4644577]
[1727803563424,26.8889,145.16,145.06,1.7752]
[1727803563425,6.8917,145.1,145.06,1.7752]
[1727803564222,20.0,145.09,144.99,1.7752]
[1727803564535,6.8968,145.0,144.97,1.7752]
[1727803564723,20.0,145.05,144.94,1.7752]
[1727803564724,6.8981,144.97,144.94,1.7752]
[1727803564918,6.5902,144.97,144.92,2.0919905]
[1727803565119,17.2385,145.03,144.92,0.3167905]
[1727803565346,17.2385,145.03,144.89,3.2396577]
[1727803565347,6.9012,144.91,144.89,3.2396577]
[1727803565522,6.9012,144.91,144.89,1.4644577]
[1727803565726,18.4503,144.94,144.7,2.0]
[1727803565727,20.0,144.93,144.81,1.7752]
[1727803565927,6.9024,144.88,144.81,1.7752]
[1727803566169,20.0,144.93,144.85,1.7752]
[1727803566332,20.0,144.93,144.8,17.4767885]
[1727803566333,20.0,144.9,144.82,1.7752]
[1727803566532,6.9043,144.84,144.8,0.2119885]
[1727803566748,87.2503,144.93,144.8,0.2119885]
[1727803566749,6.9055,144.82,144.8,0.2119885]
[1727803567049,6.9045,144.84,144.81,1.7752]
[1727803567232,6.9044,144.84,144.8,0.2119885]
[1727803567551,6.9052,144.82,144.8,0.2119885]
[1727803567926,20.0,144.81,144.8,0.2119885]
[1727803568428,6.9085,144.75,144.7,1.7752]
[1727803568623,20.0,144.8,144.7,1.7752]
[1727803568822,37.2691,144.77,144.67,1.7752]
[1727803569027,50.0,144.76,144.65,1.7752]
[1727803569225,6.9116,144.69,144.65,1.7752]
[1727803569441,20.0,144.75,144.67,1.7752]
[1727803569647,50.0,144.78,144.62,1.7812482]
[1727803569648,20.0,144.76,144.69,1.7752]
[1727803569829,20.0499,144.79,144.69,1.7752]
[1727803569830,20.0,144.78,144.74,1.7752]
[1727803570038,20.0,144.81,144.71,1.7752]
[1727803570221,6.9068,144.79,144.74,1.7752]
[1727803570425,20.0,144.81,144.71,1.7752]
[1727803570652,7.301,144.82,144.74,1.7752]
[1727803570825,7.301,144.82,144.69,0.8685726]
[1727803570826,7.301,144.82,144.71,1.7752]
[1727803571023,6.9082,144.76,144.71,1.7752]
[1727803571234,7.301,144.82,144.71,1.7752]
[1727803571641,17.2653,144.8,144.69,0.8685726]
[1727803572048,17.2653,144.8,144.69,2.6437726]
[1727803572254,6.9073,144.78,144.71,1.7752]
[1727803572559,14.2064,144.82,144.73,1.7752]
[1727803572732,6.9072,144.78,144.73,1.7752]
[1727803572940,7.301,144.82,144.73,1.7752]
[1727803573132,6.9063,144.8,144.76,1.7752]
[1727803573355,6.9063,144.8,144.74,1.7752]
[1727803573684,6.9105,144.71,144.69,2.6437726]
[1727803573831,6.9105,144.71,144.7,1.7752]
[1727803574032,6.9103,144.71,144.7,1.7752]
[1727803574347,6.9103,144.71,144.69,0.8685726]
[1727803574554,6.9135,144.65,144.64,1.7752]
[1727803574727,6.9126,144.67,144.64,1.7752]
[1727803574946,20.0,144.76,144.68,1.7752]
[1727803575141,34.5388,144.77,144.56,54.76103541]
[1727803575142,50.0,144.75,144.66,1.7752]
[1727803575342,50.0,144.73,144.64,1.7752]
[1727803575646,35.7404193,144.77,144.67,1.7752]
[1727803575647,6.911,144.7,144.67,1.7752]
[1727803575858,6.911,144.7,144.64,1.7752]
[1727803576040,6.9121,144.68,144.64,1.7752]
[1727803576240,25.94902216,144.74,144.67,1.7752]
[1727803576538,6.9102,144.72,144.69,1.7752]
[1727803576733,6.9077,144.77,144.69,1.7752]
[1727803576955,8.67562216,144.81,144.72,1.7752]
[1727803577157,25.76564227,144.82,144.62,0.3167905]
[1727803577158,6.9069,144.79,144.74,1.7752]
[1727803577360,24.5639,144.82,144.72,1.7752]
[1727803577561,6.9067,144.79,144.72,8.6848]
[1727803577867,7.301,144.82,144.7,1.7752]
[1727803578065,6.9091,144.74,144.7,1.7752]
[1727803578362,6.9042,144.84,144.78,1.7752]
[1727803578553,6.9042,144.84,144.68,54.76103541]
[1727803578554,6.9045,144.84,144.8,1.7752]
[1727803579065,1.20085124,144.91,144.85,1.7752]
[1727803579374,1.20085124,144.91,144.81,17.2631]
[1727803579375,17.2324,145.08,144.92,20.0]
[1727803579662,7.84,145.1,144.81,75.11969067]
[1727803579663,7.84,145.1,144.98,1.7752]
[1727803579839,50.0,145.06,144.94,1.7752]
[1727803580046,6.8977,144.98,144.93,1.7752]
[1727803580258,50.0,145.04,144.92,1.7752]
[1727803580452,50.0,145.01,144.88,1.7752]
[1727803580653,50.0,144.97,144.74,19.919]
[1727803580860,34.4708,145.05,144.74,19.919]
[1727803580861,17.2447,144.98,144.86,1.7752]
[1727803581049,6.8988,144.96,144.91,1.7752]
[1727803581442,50.0,145.02,144.9,1.7752]
[1727803581645,6.8982,144.97,144.94,1.7752]
[1727803581864,17.238,145.03,144.94,1.7752]
[1727803582041,6.8985,144.96,144.92,1.7752]
[1727803582249,6.8977,144.98,144.94,1.7752]
[1727803582456,6.8959,145.02,144.94,8.6743]
[1727803582658,7.84,145.1,145.01,1.7752]
[1727803582864,7.84,145.1,144.99,1.7752]
[1727803583063,7.84,145.1,145.03,1.7752]
[1727803583240,25.0706,145.1,145.02,1.7752]
[1727803583778,6.8928,145.08,145.06,1.7752]
[1727803583942,19.717,145.12,144.99,17.2415]
[1727803583943,19.717,145.12,145.03,1.7752]
[1727803584273,6.8924,145.09,145.07,1.7752]
[1727803584750,17.2248,145.14,145.09,1.7752]
[1727803584980,17.2248,145.14,144.99,1.7752]
[1727803584981,6.8956,145.02,144.99,1.7752]
[1727803585181,6.8964,145.01,144.99,1.7752]
[1727803585482,1.19729085,145.1,144.96,1.7752]
[1727803585483,50.0,145.07,144.96,1.7752]
[1727803585687,6.8975,144.98,144.94,1.7752]
[1727803585868,6.8985,144.96,144.94,1.7752]
[1727803586269,6.8998,144.93,144.92,1.7752]
[1727803586464,23.776884,144.92,144.9,1.7752]
[1727803586793,30.677584,144.92,144.9,1.7752]
[1727803586993,23.776884,144.93,144.92,1.7752]
[1727803587693,23.776884,144.93,144.87,1.7752]
[1727803587694,23.776884,144.9,144.87,1.7752]
[1727803587878,30.679084,144.88,144.87,1.7752]
[1727803588191,6.9004,144.92,144.83,5.72056569]
[1727803588389,23.776884,144.91,144.78,54.76103541]
[1727803588569,23.776884,144.91,144.79,3.57864098]
[1727803588894,23.776884,144.91,144.8,1.57853196]
[1727803589068,7.4739,145.01,144.8,1.57853196]
[1727803589389,23.776884,144.95,144.9,6.9012]
[1727803589694,23.776884,144.95,144.86,17.2573]
[1727803589695,30.675784,144.95,144.88,6.9017]
[1727803589896,6.8998,144.94,144.87,6.9022]
[1727803590097,23.776884,144.92,144.87,6.9022]
[1727803590470,23.776884,144.92,144.82,17.2621]
[1727803590774,23.776884,144.84,144.79,6.9062]
[1727803591000,23.776884,144.83,144.78,24.174]
[1727803591499,30.681584,144.83,144.78,17.267]
[1727803591674,34.4966,144.95,144.78,17.267]
[1727803591997,6.9023,144.88,144.75,54.76103541]
[1727803592178,6.9023,144.88,144.8,17.2642]
[1727803592373,23.776884,144.93,144.8,17.2642]
[1727803592573,17.2475,144.95,144.84,6.904]
[1727803592787,6.9007,144.92,144.83,17.2612]
[1727803592972,17.2432,144.99,144.86,17.2571]
[1727803593170,17.2432,144.99,144.84,54.76103541]
[1727803593393,6.898,144.97,144.92,6.9002]
[1727803593574,6.8973,144.99,144.93,6.8998]
[1727803593894,6.8994,144.94,144.89,6.9017]
[1727803594106,17.2417,145.0,144.78,54.76103541]
[1727803594107,84.4846,145.0,144.78,54.76103541]
[1727803594277,34.4743,145.04,144.81,54.76103541]
[1727803594475,17.241,145.01,144.88,17.2554]
[1727803594695,27.25016387,145.05,144.87,54.76103541]
[1727803594996,17.2393,145.02,144.9,17.2521]
[1727803595199,6.8985,144.96,144.9,17.2521]
[1727803595500,17.2393,145.02,144.9,17.2521]
[1727803595878,6.8956,145.02,144.96,6.8984]
[1727803596172,20.0,145.04,144.88,20.0]
[1727803596373,17.2379,145.03,144.88,20.0]
[1727803596577,6.8992,144.95,144.9,6.9013]
[1727803596794,6.9001,144.93,144.87,25.73606923]
[1727803597107,20.0,144.97,144.84,17.2603]
[1727803597400,34.4773,145.03,144.87,17.2568]
[1727803597401,20.0,144.95,144.87,17.2568]
[1727803597585,23.776884,144.94,144.85,6.9032]
[1727803597786,6.9028,144.87,144.83,17.2605]
[1727803597990,20.0,144.91,144.79,17.2652]
[1727803598190,6.9047,144.83,144.79,17.2652]
[1727803598399,23.776884,144.83,144.79,17.2652]
[1727803598582,30.681484,144.83,144.79,17.2652]
[1727803598786,23.776884,144.85,144.79,17.2652]
[1727803599001,23.776884,144.83,144.79,17.2652]
[1727803599178,23.776884,144.85,144.79,17.2652]
[1727803599179,30.680584,144.85,144.79,24.1715]
[1727803599377,23.776884,144.85,144.77,6.9071]
[1727803599608,23.776884,144.85,144.78,6.9065]
[1727803599783,23.776884,144.85,144.79,6.9064]
[1727803599784,6.9046,144.84,144.79,6.9064]
[1727803599986,41.037084,144.85,144.74,24.1797]
[1727803600187,41.037084,144.85,144.75,6.9081]
[1727803600398,23.776884,144.8,144.76,6.9079]
[1727803600612,17.2602,144.85,144.74,17.2712]
[1727803600613,43.776884,144.84,144.74,17.2712]
[1727803600786,6.9065,144.79,144.74,17.2712]
[1727803600992,6.9052,144.82,144.76,6.9079]
[1727803601304,23.776884,144.84,144.74,17.2712]
[1727803601305,6.9065,144.79,144.74,24.1801]
[1727803601603,41.038184,144.84,144.73,6.9093]
[1727803601906,6.9051,144.82,144.77,6.9073]
[1727803602110,85.12782501,144.91,144.8,6.9059]
[1727803602111,34.5057,144.91,144.8,6.9059]
[1727803602403,34.5057,144.91,144.79,17.2654]
[1727803602404,6.9043,144.84,144.79,17.2654]
[1727803602609,34.496,144.95,144.75,20.0]
[1727803602783,17.2498,144.93,144.81,17.263]
[1727803602983,6.9026,144.88,144.83,6.9046]
[1727803603183,17.2498,144.93,144.78,34.5338]
[1727803603413,6.901,144.91,144.86,6.9031]
[1727803603596,6.8994,144.94,144.89,6.9017]
[1727803603778,8.09232501,145.01,144.86,54.76103541]
[1727803603779,6.8984,144.97,144.86,54.76103541]
[1727803603984,7.4702,145.01,144.95,6.8986]
[1727803604187,50.62212501,145.09,144.87,20.0]
[1727803604188,24.777,145.08,144.89,54.76103541]
[1727803604404,24.777,145.08,144.92,54.76103541]
[1727803604608,21.19259085,145.1,144.92,54.76103541]
[1727803604609,19.9953,145.1,144.95,54.76103541]
[1727803604823,19.717,145.15,144.98,54.76103541]
[1727803605105,1.19651806,145.14,144.98,54.76103541]
[1727803605301,24.767,145.16,145.02,17.2385]
[1727803605302,6.8932,145.07,145.02,17.2385]
[1727803605509,6.8926,145.09,145.03,6.895]